bitfinex/quotes_BTCUSD_20250422
["timestamp","ask_amount","ask_price","bid_price","bid_amount"]
[1745349568596,0.001,91477.0,91476.0,0.18339527]
[1745349568803,0.001,91477.0,91476.0,0.19515936]
[1745349569172,0.003,91477.0,91476.0,0.19415936]
[1745349569316,0.006,91477.0,91476.0,0.19415936]
[1745349569525,0.006,91477.0,91476.0,0.19515936]
[1745349569526,0.007,91477.0,91476.0,0.19515936]
[1745349569731,0.001,91477.0,91476.0,0.75033936]
[1745349570072,0.001,91477.0,91476.0,0.74915335]
[1745349570211,0.003,91477.0,91476.0,0.75015335]
[1745349571698,0.001,91477.0,91476.0,0.74915335]
[1745349572067,0.01097959,91503.0,91489.0,0.17488425]
[1745349572268,0.049,91508.0,91489.0,0.17488425]
[1745349572269,0.08895659,91491.0,91490.0,0.2689625]
[1745349573343,0.08895659,91491.0,91490.0,0.26910102]
[1745349573544,0.002,91503.0,91502.0,0.17485956]
[1745349573694,0.001,91505.0,91504.0,0.17485574]
[1745349573895,0.001,91505.0,91504.0,0.17704103]
[1745349575556,0.001,91505.0,91504.0,0.17485574]
[1745349575889,0.004,91505.0,91504.0,0.17804092]
[1745349576098,0.002,91505.0,91504.0,0.17804092]
[1745349576300,0.001,91505.0,91504.0,0.17704092]
[1745349576439,0.004,91505.0,91504.0,0.17804092]
[1745349578620,0.004,91505.0,91504.0,0.17585574]
[1745349582302,0.003,91505.0,91504.0,0.17585574]
[1745349582821,0.003,91505.0,91504.0,0.001]
[1745349583072,0.004,91505.0,91504.0,0.001]
[1745349583520,0.004,91505.0,91504.0,0.17585574]
[1745349583994,0.004,91505.0,91504.0,0.001]
[1745349584231,0.004,91505.0,91504.0,0.17585574]
[1745349585561,0.004,91505.0,91504.0,0.001]
[1745349586130,0.004,91505.0,91504.0,0.17585574]
[1745349586356,0.004,91505.0,91504.0,0.001]
[1745349586557,0.004,91505.0,91504.0,0.17585574]
[1745349590153,0.004,91505.0,91503.0,0.11753907]
[1745349590357,0.004,91505.0,91504.0,0.17485574]
[1745349591012,0.003,91505.0,91504.0,0.17485574]
[1745349591426,0.004,91505.0,91503.0,0.11853907]
[1745349592181,0.004,91505.0,91504.0,0.17485574]
[1745349592389,0.003,91505.0,91502.0,0.17485601]
[1745349592595,0.001,91505.0,91500.0,0.17486338]
[1745349592897,0.002,91505.0,91504.0,0.001]
[1745349593152,0.0474,91505.0,91504.0,0.001]
[1745349593356,0.16115594,91505.0,91504.0,0.001]
[1745349593951,0.002,91505.0,91504.0,0.17585574]
[1745349594162,0.002,91505.0,91504.0,0.17485574]
[1745349594594,0.004,91505.0,91504.0,0.17485574]
[1745349594801,0.003,91505.0,91502.0,0.1748592]
[1745349594962,0.003,91505.0,91504.0,0.0021854]
[1745349595168,0.005,91505.0,91504.0,0.17804114]
[1745349596167,0.005,91505.0,91504.0,0.17585574]
[1745349597415,0.005,91505.0,91504.0,0.001]
[1745349597824,0.005,91505.0,91504.0,0.17585574]
[1745349601431,0.005,91505.0,91504.0,0.17804113]
[1745349601633,0.005,91505.0,91504.0,0.17585574]
[1745349606505,0.005,91505.0,91504.0,0.31915574]
[1745349606757,0.005,91505.0,91504.0,0.78745253]
[1745349607370,0.003,91505.0,91504.0,0.78645253]
[1745349607581,0.004,91505.0,91504.0,0.78745253]
[1745349608008,0.002,91505.0,91504.0,0.78745253]
[1745349608217,0.001,91505.0,91504.0,0.78645253]
[1745349608437,0.002,91505.0,91504.0,0.78845253]
[1745349609029,0.002,91505.0,91504.0,0.78945253]
[1745349611015,0.002,91505.0,91504.0,0.66115574]
[1745349611230,0.002,91505.0,91504.0,0.56715574]
[1745349611368,0.002,91505.0,91504.0,1.07465574]
[1745349611986,0.002,91505.0,91504.0,1.02535574]
[1745349613157,0.002,91505.0,91504.0,0.93135574]
[1745349613337,0.002,91505.0,91504.0,1.02535574]
[1745349613851,0.003,91505.0,91504.0,0.4165]
[1745349614067,0.0525,91505.0,91504.0,0.003]
[1745349615368,0.0525,91505.0,91504.0,0.00518546]
[1745349615573,0.0525,91505.0,91504.0,0.003]
[1745349616529,0.003,91505.0,91504.0,0.17785574]
[1745349616742,0.003,91505.0,91504.0,0.18004107]
[1745349616960,0.003,91505.0,91504.0,0.22874107]
[1745349619131,0.003,91505.0,91504.0,0.27185574]
[1745349620223,0.003,91505.0,91504.0,0.68535574]
[1745349624241,0.003,91505.0,91504.0,0.68531574]
[1745349627425,0.003,91505.0,91504.0,0.49743816]
[1745349627650,0.003,91505.0,91504.0,0.6722939]
[1745349628068,0.003,91505.0,91504.0,0.40347816]
[1745349628480,0.003,91505.0,91504.0,0.5783339]
[1745349629644,0.0523,91505.0,91504.0,0.40347816]
[1745349630901,0.0513,91505.0,91504.0,0.40347816]
[1745349631133,0.0503,91505.0,91504.0,0.40347816]
[1745349631345,0.0513,91505.0,91504.0,0.40347816]
[1745349631516,0.0513,91505.0,91504.0,0.5783339]
[1745349631778,0.002,91505.0,91504.0,0.5783339]
[1745349635905,0.002,91505.0,91504.0,0.40347816]
[1745349636031,0.002,91505.0,91504.0,0.5783339]
[1745349636272,0.0513,91505.0,91504.0,0.5783339]
[1745349637457,0.0513,91505.0,91504.0,0.17485574]
[1745349637890,0.0503,91505.0,91500.0,0.17486299]
[1745349638099,0.0503,91505.0,91500.0,0.17486295]
[1745349638299,0.0513,91505.0,91504.0,0.001]
[1745349638787,0.0503,91505.0,91503.0,0.17485742]
[1745349639185,0.0523,91505.0,91504.0,0.001]
[1745349639389,0.0523,91505.0,91503.0,0.17485742]
[1745349639768,0.0523,91505.0,91504.0,0.001]
[1745349640421,0.0523,91505.0,91503.0,0.17485742]
[1745349640622,0.0503,91505.0,91503.0,0.17485742]
[1745349640852,0.0523,91505.0,91504.0,0.17485574]
[1745349641069,0.0543,91505.0,91504.0,0.17485574]
[1745349641697,0.0523,91505.0,91504.0,0.17485574]
[1745349642139,0.0523,91505.0,91504.0,0.17585574]
[1745349642140,0.0533,91505.0,91504.0,0.17585574]
[1745349642471,0.0553,91505.0,91504.0,0.17685574]
[1745349642806,0.006,91505.0,91504.0,0.27081574]
[1745349643467,0.006,91505.0,91504.0,0.17685574]
[1745349643674,0.006,91505.0,91504.0,0.78804984]
[1745349643885,0.006,91505.0,91504.0,1.17564984]
[1745349644543,0.003,91505.0,91504.0,1.0132939]
[1745349644757,0.004,91505.0,91504.0,0.9203339]
[1745349644960,0.004,91505.0,91504.0,1.0132939]
[1745349645113,0.001,91505.0,91504.0,1.0122939]
[1745349645319,0.001,91505.0,91504.0,1.0132939]
[1745349645529,0.001,91505.0,91504.0,1.0142939]
[1745349645530,0.002,91505.0,91504.0,1.0142939]
[1745349649778,0.002,91505.0,91504.0,0.80182452]
[1745349650389,0.002,91505.0,91504.0,0.97668026]
[1745349655409,0.002,91505.0,91504.0,0.36786452]
[1745349655410,0.0513,91505.0,91504.0,0.36786452]
[1745349655640,0.0513,91505.0,91490.0,0.00013852]
[1745349655641,0.21165594,91505.0,91490.0,0.00013852]
[1745349655880,0.08895659,91491.0,91490.0,0.00013852]
[1745349656105,0.13825659,91491.0,91490.0,0.00013852]
[1745349656562,0.0493,91491.0,91490.0,0.00013852]
[1745349657175,0.05746542,91491.0,91490.0,0.00013852]
[1745349657648,0.05746542,91491.0,91490.0,0.00113852]
[1745349657823,0.05846542,91491.0,91490.0,0.00113852]
[1745349660502,0.05846542,91491.0,91490.0,0.1541607]
[1745349660780,0.05846542,91491.0,91490.0,0.15634649]
[1745349661225,0.0503,91491.0,91490.0,0.15634649]
[1745349661478,0.001,91491.0,91490.0,0.1541607]
[1745349663118,0.0472,91491.0,91490.0,0.00113852]
[1745349664260,0.0954,91491.0,91490.0,0.00113852]
[1745349675975,0.10608491,91491.0,91490.0,0.00113852]
[1745349676179,0.21984085,91491.0,91490.0,0.00113852]
[1745349679127,0.16984085,91491.0,91490.0,0.00113852]
[1745349682150,0.21524085,91491.0,91490.0,0.00113852]
[1745349684232,0.55524085,91491.0,91490.0,0.00113852]
[1745349684660,0.4339,91490.0,91467.0,0.0004241]
[1745349684870,0.0939,91479.0,91467.0,0.00056335]
[1745349685070,0.0454,91477.0,91467.0,0.00056335]
[1745349685293,0.0454,91475.0,91467.0,0.00056335]
[1745349685573,0.0485,91479.0,91467.0,0.00056335]
[1745349685574,0.0454,91473.0,91467.0,0.00056335]
[1745349685782,0.0454,91471.0,91467.0,0.00156335]
[1745349685999,0.11594249,91470.0,91467.0,0.00456335]
[1745349686204,0.11594249,91470.0,91467.0,0.00356335]
[1745349686865,0.11594249,91470.0,91467.0,0.00456335]
[1745349687073,0.0471,91469.0,91467.0,0.00456335]
[1745349687290,0.11594249,91468.0,91467.0,0.00156335]
[1745349687488,0.20904249,91468.0,91467.0,0.00156335]
[1745349687695,0.20904249,91468.0,91467.0,0.00456335]
[1745349687909,0.21004249,91468.0,91467.0,0.00456335]
[1745349688133,0.21004249,91468.0,91467.0,0.00156335]
[1745349688345,0.21606286,91468.0,91467.0,0.00456335]
[1745349688550,0.21606286,91468.0,91467.0,0.00156335]
[1745349688551,0.21824941,91468.0,91467.0,0.00156335]
[1745349688767,0.55824941,91468.0,91467.0,0.00156335]
[1745349688970,0.55706286,91468.0,91467.0,0.00456335]
[1745349689420,0.35454085,91467.0,91458.0,0.0004242]
[1745349689645,0.54685594,91460.0,91459.0,0.00047056]
[1745349689846,0.64685594,91460.0,91459.0,0.00047056]
[1745349690491,0.64385594,91460.0,91459.0,0.00047056]
[1745349691135,0.66739679,91460.0,91459.0,0.00147056]
[1745349691361,0.40054085,91459.0,91409.0,0.01093984]
[1745349691575,0.0471,91449.0,91430.0,0.15312187]
[1745349691810,0.11594249,91448.0,91430.0,0.15312187]
[1745349692245,0.11594249,91448.0,91431.0,0.15311991]
[1745349693351,0.11594249,91448.0,91432.0,0.15311831]
[1745349693568,0.11594249,91448.0,91428.0,9.92e-05]
[1745349694000,0.11594249,91448.0,91429.0,0.15312428]
[1745349694210,0.11694249,91448.0,91428.0,9.92e-05]
[1745349694419,0.12768047,91448.0,91428.0,9.92e-05]
[1745349694627,0.12968047,91448.0,91430.0,0.15312214]
[1745349694850,0.12968047,91448.0,91429.0,0.15312397]
[1745349695054,0.12768047,91448.0,91429.0,0.15312397]
[1745349695253,0.13068047,91448.0,91429.0,0.15312397]
[1745349695480,0.13068047,91448.0,91428.0,9.92e-05]
[1745349695685,0.12768047,91448.0,91428.0,0.15322492]
[1745349696156,0.12668047,91448.0,91429.0,0.15312405]
[1745349696356,0.12668047,91448.0,91429.0,0.15312366]
[1745349696640,0.12768047,91448.0,91428.0,9.92e-05]
[1745349696853,0.12768047,91448.0,91430.0,0.15312152]
[1745349697069,0.12668047,91448.0,91430.0,0.15312152]
[1745349697278,0.12768047,91448.0,91428.0,9.92e-05]
[1745349697503,0.0931,91447.0,91428.0,9.92e-05]
[1745349697712,0.0471,91439.0,91428.0,9.92e-05]
[1745349697917,0.11594249,91438.0,91428.0,9.92e-05]
[1745349698704,0.12413063,91438.0,91428.0,9.92e-05]
[1745349699110,0.12713063,91438.0,91428.0,9.92e-05]
[1745349700344,0.12813063,91438.0,91428.0,9.92e-05]
[1745349703249,0.12594408,91438.0,91428.0,9.92e-05]
[1745349703465,0.01218814,91438.0,91430.0,0.15312093]
[1745349703642,0.01218814,91438.0,91428.0,0.00228656]
[1745349703868,0.01218814,91438.0,91432.0,0.15311778]
[1745349704073,0.01218814,91438.0,91432.0,0.15311828]
[1745349704274,0.00918814,91438.0,91432.0,0.15311828]
[1745349704469,0.01218814,91438.0,91433.0,0.15311719]
[1745349704813,0.00918814,91438.0,91433.0,0.15311758]
[1745349705231,0.01118814,91438.0,91433.0,0.15311758]
[1745349705429,0.00918814,91438.0,91433.0,0.15311758]
[1745349705635,0.00918814,91438.0,91432.0,0.15311883]
[1745349705868,0.00918814,91438.0,91429.0,0.15312336]
[1745349705869,0.01218814,91438.0,91430.0,0.1531226]
[1745349706079,0.01118814,91438.0,91437.0,0.15311088]
[1745349706283,0.01318814,91438.0,91437.0,0.15311088]
[1745349706691,0.01118814,91438.0,91437.0,0.15311088]
[1745349707129,0.01218814,91438.0,91437.0,0.15529782]
[1745349707336,0.01218814,91438.0,91432.0,0.15311893]
[1745349707581,0.00918814,91438.0,91434.0,0.15311585]
[1745349707796,0.00918814,91438.0,91432.0,0.15311893]
[1745349708005,0.01218814,91438.0,91434.0,0.15311461]
[1745349708210,0.01118814,91438.0,91434.0,0.15311461]
[1745349708417,0.01418814,91438.0,91434.0,0.15311461]
[1745349708852,0.01418814,91438.0,91435.0,0.1531134]
[1745349709070,0.01118814,91438.0,91434.0,0.15311461]
[1745349709278,0.01318814,91438.0,91434.0,0.15530174]
[1745349709682,0.01118814,91438.0,91434.0,0.15311461]
[1745349709928,0.01118814,91438.0,91435.0,0.153114]
[1745349710120,0.01018814,91438.0,91435.0,0.153114]
[1745349710318,0.01418814,91438.0,91435.0,0.153114]
[1745349711108,0.00818814,91438.0,91434.0,0.15311461]
[1745349711584,0.006,91438.0,91434.0,0.15311461]
[1745349711962,0.006,91438.0,91432.0,0.15311874]
[1745349712187,0.006,91438.0,91433.0,0.15311701]
[1745349712800,0.004,91438.0,91433.0,0.15311701]
[1745349712998,0.005,91438.0,91433.0,0.15311701]
[1745349713357,0.001,91438.0,91434.0,0.15311556]
[1745349713584,0.005,91438.0,91434.0,0.15311556]
[1745349713789,0.001,91438.0,91434.0,0.15311556]
[1745349714126,0.004,91438.0,91435.0,0.1531137]
[1745349714335,0.001,91438.0,91435.0,0.1531137]
[1745349714518,0.00925754,91438.0,91435.0,0.1531137]
[1745349714736,0.01225754,91438.0,91435.0,0.1531137]
[1745349714942,0.00825754,91438.0,91435.0,0.1531137]
[1745349715164,0.002,91438.0,91430.0,0.15312218]
[1745349715358,0.002,91438.0,91428.0,9.92e-05]
[1745349715359,0.002,91438.0,91435.0,0.15311264]
[1745349715562,0.01292453,91448.0,91436.0,0.15311229]
[1745349715778,0.11375594,91447.0,91435.0,0.15311264]
[1745349716000,0.002,91438.0,91433.0,0.15311712]
[1745349716432,0.004,91438.0,91433.0,0.15311712]
[1745349716665,0.11594249,91447.0,91433.0,0.15311712]
[1745349717287,0.11594249,91447.0,91434.0,0.15311509]
[1745349717486,0.11994249,91447.0,91434.0,0.15311509]
[1745349717692,0.11594249,91447.0,91433.0,0.15311712]
[1745349717897,0.11594249,91447.0,91434.0,0.15311492]
[1745349718097,0.11894249,91447.0,91434.0,0.15311492]
[1745349718310,0.12432452,91447.0,91434.0,0.15311492]
[1745349718791,0.002,91438.0,91434.0,0.15311492]
[1745349719421,0.12432452,91447.0,91434.0,0.15311492]
[1745349719639,0.13032452,91447.0,91434.0,0.15311492]
[1745349719899,0.12632452,91447.0,91434.0,0.15311492]
[1745349720132,0.12632452,91447.0,91433.0,0.1531143]
[1745349720312,0.004,91438.0,91433.0,0.1531143]
[1745349720515,0.12632452,91447.0,91433.0,0.1531143]
[1745349720723,0.12632452,91447.0,91429.0,0.15312414]
[1745349720930,0.13032452,91447.0,91431.0,0.15312029]
[1745349721102,0.0472,91446.0,91431.0,0.15312029]
[1745349721460,0.005,91438.0,91430.0,0.15312164]
[1745349721671,0.005,91438.0,91429.0,0.15312428]
[1745349721886,0.003,91438.0,91428.0,9.92e-05]
[1745349722249,0.003,91438.0,91430.0,0.1531223]
[1745349722837,0.003,91438.0,91428.0,0.1532238]
[1745349723048,0.004,91438.0,91428.0,9.92e-05]
[1745349723259,0.001,91438.0,91428.0,9.92e-05]
[1745349723716,0.001,91438.0,91429.0,0.15312407]
[1745349723932,0.001,91438.0,91431.0,0.15311944]
[1745349724148,0.002,91438.0,91431.0,0.15311944]
[1745349724356,0.11594249,91445.0,91430.0,0.15312255]
[1745349724588,0.001,91438.0,91430.0,0.15312255]
[1745349724807,0.003,91438.0,91431.0,0.15312044]
[1745349725060,0.11594249,91445.0,91431.0,0.15312044]
[1745349725275,0.004,91438.0,91432.0,0.15311832]
[1745349725713,0.004,91438.0,91432.0,0.15311826]
[1745349725928,0.003,91438.0,91431.0,0.15311947]
[1745349726186,0.003,91438.0,91430.0,0.1531226]
[1745349726426,0.11475594,91445.0,91432.0,0.15311916]
[1745349726874,0.003,91438.0,91432.0,0.15311916]
[1745349727074,0.11475594,91445.0,91432.0,0.15311916]
[1745349727274,0.11475594,91445.0,91430.0,0.1531226]
[1745349727479,0.003,91438.0,91431.0,0.15312069]
[1745349727689,0.11375594,91445.0,91430.0,0.1531226]
[1745349727920,0.004,91438.0,91431.0,0.15312093]
[1745349728124,0.004,91438.0,91429.0,0.15312392]
[1745349728323,0.001,91438.0,91430.0,0.15312165]
[1745349728528,0.11375594,91445.0,91428.0,9.92e-05]
[1745349728747,0.0472,91439.0,91428.0,9.92e-05]
[1745349728965,0.11594249,91438.0,91428.0,9.92e-05]
[1745349729149,0.0472,91437.0,91428.0,9.92e-05]
[1745349729365,0.38657025,91440.0,91428.0,9.92e-05]
[1745349729366,0.11594249,91436.0,91428.0,9.92e-05]
[1745349729530,0.0472,91434.0,91428.0,9.92e-05]
[1745349729735,0.0472,91432.0,91428.0,9.92e-05]
[1745349729935,0.0472,91430.0,91428.0,9.92e-05]
[1745349730173,0.16314249,91429.0,91428.0,9.92e-05]
[1745349731405,0.16614249,91429.0,91428.0,9.92e-05]
[1745349735903,0.0502,91429.0,91428.0,9.92e-05]
[1745349736112,0.0502,91429.0,91428.0,0.15541238]
[1745349736113,0.003,91429.0,91428.0,0.15541238]
[1745349736346,0.003,91429.0,91428.0,0.15641238]
[1745349736558,0.003,91429.0,91428.0,0.15422515]
[1745349737191,0.003,91429.0,91428.0,0.49641213]
[1745349737369,0.003,91429.0,91428.0,0.5053471]
[1745349738091,0.003,91429.0,91428.0,0.49422515]
[1745349740487,0.003,91429.0,91428.0,0.97384561]
[1745349740720,0.003,91429.0,91428.0,1.03678646]
[1745349741383,0.002,91429.0,91428.0,1.03678646]
[1745349742081,0.00810709,91449.0,91448.0,0.15309246]
[1745349742516,0.08895659,91456.0,91448.0,0.15309246]
[1745349742905,0.08895659,91456.0,91452.0,0.15308556]
[1745349743571,0.08895659,91456.0,91453.0,0.15308394]
[1745349744249,0.09595659,91456.0,91454.0,0.15308215]
[1745349744464,0.09595659,91456.0,91453.0,0.15308394]
[1745349744670,0.09595659,91456.0,91453.0,0.15308383]
[1745349745283,0.007,91456.0,91455.0,0.15308075]
[1745349745495,0.007,91456.0,91452.0,0.15308552]
[1745349745737,0.007,91456.0,91453.0,0.15308385]
[1745349745922,0.01307187,91456.0,91453.0,0.15308385]
[1745349746136,0.02007187,91456.0,91453.0,0.15308385]
[1745349746345,0.01507187,91456.0,91453.0,0.15308385]
[1745349746652,0.01307187,91456.0,91452.0,0.15308552]
[1745349746867,0.011,91456.0,91452.0,0.15308552]
[1745349747070,0.005,91456.0,91452.0,0.15308552]
[1745349747272,0.007,91456.0,91452.0,0.15308552]
[1745349747504,0.012,91456.0,91452.0,0.15308552]
[1745349748292,0.012,91456.0,91450.0,0.15308888]
[1745349748497,0.005,91456.0,91451.0,0.15308703]
[1745349749193,0.011,91456.0,91452.0,0.15308548]
[1745349749612,0.006,91456.0,91453.0,0.15308369]
[1745349749822,0.006,91456.0,91450.0,0.15308911]
[1745349750046,0.01910515,91456.0,91447.0,0.15309086]
[1745349750486,0.0498,91465.0,91451.0,0.15308718]
[1745349750696,0.1,91459.0,91451.0,0.15308718]
[1745349751170,0.005,91456.0,91451.0,0.15308718]
[1745349751408,0.005,91456.0,91450.0,0.15308901]
[1745349751642,0.0498,91465.0,91450.0,0.15308901]
[1745349751855,0.006,91456.0,91450.0,0.15308746]
[1745349752667,0.006,91456.0,91448.0,0.15309181]
[1745349752901,0.006,91456.0,91449.0,0.15309012]
[1745349753112,0.0548,91465.0,91449.0,0.15309012]
[1745349753347,0.1,91459.0,91450.0,0.15308765]
[1745349753559,0.1,91459.0,91451.0,0.15308705]
[1745349753768,0.10814527,91459.0,91451.0,0.15308705]
[1745349754001,0.004,91456.0,91451.0,0.15308705]
[1745349754429,0.00814527,91459.0,91450.0,0.15308897]
[1745349754660,0.10814527,91459.0,91436.0,0.34]
[1745349754877,0.1,91459.0,91446.0,0.15309528]
[1745349755091,0.0453,91455.0,91446.0,0.1530953]
[1745349755521,0.0453,91455.0,91449.0,0.15308938]
[1745349755698,0.0453,91455.0,91448.0,0.15309213]
[1745349757499,0.0493,91455.0,91445.0,0.15309586]
[1745349757717,0.0493,91455.0,91447.0,0.15309287]
[1745349758166,0.0553,91455.0,91448.0,0.15309168]
[1745349758397,0.0553,91455.0,91447.0,0.15309287]
[1745349758620,0.0493,91455.0,91447.0,0.15309287]
[1745349758825,0.0543,91455.0,91447.0,0.15309287]
[1745349759035,0.0493,91455.0,91447.0,0.15309287]
[1745349759244,0.0453,91455.0,91448.0,0.15309224]
[1745349759447,0.0503,91455.0,91447.0,0.15309287]
[1745349759659,0.0483,91455.0,91448.0,0.15309086]
[1745349760039,0.0533,91455.0,91448.0,0.15309086]
[1745349760679,0.0533,91455.0,91447.0,0.15309333]
[1745349760884,0.0503,91455.0,91447.0,0.15309333]
[1745349761113,0.0533,91455.0,91446.0,0.15309473]
[1745349761532,0.0533,91455.0,91442.0,0.15310239]
[1745349761739,0.0483,91455.0,91447.0,0.15309344]
[1745349761949,0.0533,91455.0,91447.0,0.15309344]
[1745349762397,0.0453,91455.0,91440.0,0.15310428]
[1745349762614,0.0453,91453.0,91434.0,0.36586452]
[1745349762820,0.0453,91451.0,91435.0,0.15311322]
[1745349762946,0.00218655,91450.0,91439.0,0.15310681]
[1745349763196,0.0453,91451.0,91438.0,0.15310606]
[1745349763391,0.0453,91451.0,91440.0,0.15310554]
[1745349763599,0.0453,91451.0,91437.0,0.15310936]
[1745349764192,0.001,91450.0,91437.0,0.15310936]
[1745349765029,0.001,91450.0,91438.0,0.15310754]
[1745349765260,0.04748655,91451.0,91436.0,0.15311255]
[1745349765470,0.002,91450.0,91437.0,0.15310922]
[1745349766054,0.002,91450.0,91438.0,0.15310911]
[1745349766255,0.002,91450.0,91437.0,0.15310922]
[1745349767336,0.003,91450.0,91438.0,0.15310921]
[1745349767533,0.003,91450.0,91434.0,0.51897932]
[1745349767534,0.003,91450.0,91448.0,0.15309218]
[1745349767748,0.003,91450.0,91449.0,0.15309079]
[1745349768331,0.0453,91456.0,91449.0,0.15309079]
[1745349768572,0.004,91450.0,91449.0,0.15309079]
[1745349768793,0.001,91450.0,91449.0,0.15309079]
[1745349768993,0.0453,91456.0,91449.0,0.15309079]
[1745349769124,0.006,91450.0,91449.0,0.15309079]
[1745349769479,0.01,91450.0,91449.0,0.15309079]
[1745349769832,0.006,91450.0,91449.0,0.15309079]
[1745349771444,0.006,91450.0,91449.0,0.1552776]
[1745349771676,0.01,91450.0,91449.0,0.1661064]
[1745349771944,0.01,91450.0,91449.0,0.16391959]
[1745349772293,0.004,91450.0,91449.0,0.16391959]
[1745349772496,0.00819133,91459.0,91455.0,0.15308062]
[1745349772714,0.0453,91462.0,91455.0,0.15308062]
[1745349773276,0.0453,91462.0,91456.0,0.00218659]
[1745349773690,0.0453,91462.0,91456.0,0.15526565]
[1745349774114,0.0453,91462.0,91455.0,0.07735296]
[1745349774518,0.005,91459.0,91455.0,0.07745216]
[1745349774739,0.012,91459.0,91455.0,0.07745216]
[1745349775099,0.0453,91462.0,91455.0,0.07745216]
[1745349775280,0.0573,91462.0,91455.0,0.07745216]
[1745349775825,0.007,91459.0,91455.0,0.07745216]
[1745349775971,0.012,91459.0,91455.0,0.07745216]
[1745349776206,0.005,91459.0,91455.0,0.07745216]
[1745349776412,0.005,91459.0,91455.0,9.92e-05]
[1745349776611,0.01322413,91459.0,91455.0,9.92e-05]
[1745349776860,0.005,91459.0,91455.0,9.92e-05]
[1745349777367,0.0523,91462.0,91454.0,0.15280312]
[1745349777587,0.0573,91462.0,91454.0,0.15294232]
[1745349777958,0.0573,91462.0,91454.0,0.0001392]
[1745349778194,0.0503,91462.0,91454.0,0.0001392]
[1745349778511,0.006,91459.0,91454.0,0.0001392]
[1745349778715,0.0453,91462.0,91454.0,0.15322141]
[1745349778919,0.005,91459.0,91454.0,0.15322141]
[1745349779123,0.005,91459.0,91454.0,0.0001392]
[1745349779577,0.01338856,91459.0,91454.0,0.15322131]
[1745349779804,0.011,91459.0,91454.0,0.15322131]
[1745349780006,0.011,91459.0,91455.0,0.1530803]
[1745349780259,0.011,91459.0,91454.0,0.15322131]
[1745349780872,0.006,91459.0,91454.0,0.15322131]
[1745349781290,0.004,91459.0,91454.0,0.15322131]
[1745349781498,0.004,91459.0,91458.0,0.15307572]
[1745349781499,0.01,91459.0,91458.0,0.15307572]
[1745349782171,0.016,91459.0,91458.0,0.15307572]
[1745349782359,0.01,91459.0,91458.0,0.15307572]
[1745349782796,0.017,91459.0,91458.0,0.15307572]
[1745349783239,0.013,91459.0,91458.0,0.15307572]
[1745349783660,0.019,91459.0,91458.0,0.15307572]
[1745349784713,0.02707005,91459.0,91458.0,0.15307572]
[1745349788786,0.019,91459.0,91458.0,0.15416914]
[1745349789121,0.019,91459.0,91458.0,0.86003366]
[1745349789351,0.019,91459.0,91458.0,0.98723703]
[1745349789565,0.013,91459.0,91458.0,1.03523703]
[1745349790074,0.016,91459.0,91458.0,1.03523703]
[1745349790497,0.000849,91475.0,91474.0,0.15304895]
[1745349791454,0.000849,91475.0,91471.0,0.15305238]
[1745349791659,0.000849,91475.0,91473.0,0.15305019]
[1745349791867,0.000849,91475.0,91474.0,0.15304895]
[1745349792065,0.007849,91475.0,91474.0,0.15304895]
[1745349792674,0.013849,91475.0,91474.0,0.15404895]
[1745349794147,0.019849,91475.0,91474.0,0.15404895]
[1745349794353,0.012849,91475.0,91474.0,0.15404895]
[1745349794814,0.019849,91475.0,91474.0,0.15404895]
[1745349798816,0.019849,91475.0,91474.0,0.15514143]
[1745349799669,0.019849,91475.0,91474.0,0.49514143]
[1745349799877,0.019849,91475.0,91474.0,0.49404895]
[1745349800272,0.019849,91475.0,91474.0,0.6188569]
[1745349800425,0.000849,91475.0,91474.0,0.6178569]
[1745349800632,0.000849,91475.0,91474.0,0.6188569]
[1745349800870,0.008849,91475.0,91474.0,0.6188569]
[1745349801884,0.009849,91475.0,91474.0,0.98472142]
[1745349802396,0.003849,91475.0,91474.0,0.98472142]
[1745349802605,0.006849,91475.0,91474.0,0.98572142]
[1745349803258,0.003849,91475.0,91474.0,0.98472142]
[1745349803694,0.005849,91475.0,91474.0,0.98572142]
[1745349805295,0.005849,91475.0,91474.0,1.00026227]
[1745349820961,0.000849,91485.0,91483.0,0.50757474]
[1745349821193,0.000849,91485.0,91483.0,0.72137068]
[1745349821688,1e-08,91493.0,91486.0,0.01454085]
[1745349821922,1e-08,91493.0,91492.0,0.50755969]
[1745349822127,1e-08,91493.0,91492.0,0.62131563]
[1745349822363,0.005,91499.0,91498.0,0.1530088]
[1745349822591,0.005,91499.0,91498.0,0.98826005]
[1745349822812,0.005,91499.0,91498.0,1.03627011]
[1745349822813,1e-08,91499.0,91498.0,1.03627011]
[1745349823721,1e-08,91499.0,91498.0,0.84083611]
[1745349824380,0.00100001,91499.0,91498.0,0.99784491]
[1745349824608,0.00100001,91499.0,91498.0,0.99884491]
[1745349824828,1e-08,91499.0,91498.0,0.99484491]
[1745349825053,0.00100001,91499.0,91498.0,1.00184491]
[1745349825471,1e-08,91499.0,91498.0,1.05164491]
[1745349825706,1e-08,91499.0,91498.0,1.10164491]
[1745349826176,1e-08,91499.0,91498.0,1.09864491]
[1745349826622,0.000848,91512.0,91511.0,0.50852792]
[1745349826861,0.000848,91512.0,91511.0,0.72232386]
[1745349827636,1e-08,91512.0,91511.0,0.72232386]
[1745349828308,0.000848,91521.0,91514.0,0.15298205]
[1745349828532,0.000848,91521.0,91514.0,0.28236792]
[1745349828757,0.000848,91521.0,91520.0,0.49297202]
[1745349828997,0.000848,91521.0,91520.0,0.97259248]
[1745349829215,0.0505486,91533.0,91528.0,0.5074995]
[1745349829216,0.0008486,91533.0,91528.0,0.5074995]
[1745349829476,0.0008486,91533.0,91528.0,0.62125544]
[1745349829692,0.0008486,91533.0,91529.0,0.34]
[1745349829894,0.0008486,91533.0,91529.0,0.45375594]
[1745349830102,0.00131226,91530.0,91529.0,0.83416131]
[1745349831370,0.00131226,91530.0,91529.0,0.70586452]
[1745349831605,0.00131226,91530.0,91529.0,0.80586452]
[1745349832603,0.00231226,91530.0,91529.0,0.80586452]
[1745349832986,0.00331226,91530.0,91529.0,0.80586452]
[1745349833612,0.00231226,91530.0,91529.0,0.80586452]
[1745349835935,0.00231226,91530.0,91529.0,0.9588215]
[1745349839196,0.00231226,91530.0,91529.0,1.07257744]